bitfinex/quotes_BTCUSD_20250421
["timestamp","ask_amount","ask_price","bid_price","bid_amount"]
[1745200724495,0.01400721,87110.0,87066.0,0.20283876]
[1745200724700,0.01400721,87110.0,87068.0,0.08339085]
[1745200724899,0.01400721,87110.0,87070.0,0.01454085]
[1745200725100,0.01400721,87110.0,87072.0,0.01454085]
[1745200725329,0.01400721,87110.0,87073.0,0.11944791]
[1745200725525,0.01485261,87113.0,87073.0,0.11944791]
[1745200725729,0.09199333,87107.0,87073.0,0.11944791]
[1745200725932,0.09199333,87107.0,87076.0,0.01454085]
[1745200726146,0.09199333,87107.0,87080.0,0.01454085]
[1745200726343,0.09199333,87107.0,87082.0,0.35454085]
[1745200726533,0.09199333,87107.0,87084.0,0.34]
[1745200726745,0.09199333,87107.0,87086.0,0.34]
[1745200726949,0.09185741,87098.0,87087.0,0.11748]
[1745200727224,0.16574791,87097.0,87088.0,0.34]
[1745200728300,0.16574791,87097.0,87088.0,0.38135923]
[1745200728500,0.16674791,87097.0,87088.0,0.38135923]
[1745200728684,0.01400721,87095.0,87089.0,0.11744]
[1745200728866,0.11944791,87094.0,87090.0,0.34]
[1745200730363,0.11948791,87094.0,87090.0,0.34]
[1745200733129,4e-05,87094.0,87090.0,0.34]
[1745200734156,0.06130721,87109.0,87091.0,0.00229623]
[1745200734476,0.06130721,87109.0,87090.0,0.341]
[1745200734882,0.001,87104.0,87090.0,0.341]
[1745200735106,0.11944791,87103.0,87090.0,0.001]
[1745200735356,0.11944791,87103.0,87091.0,0.11808]
[1745200737194,0.11948791,87103.0,87093.0,0.34]
[1745200737600,0.11948791,87103.0,87095.0,0.34]
[1745200738037,0.11948791,87103.0,87097.0,0.34]
[1745200738390,0.01400721,87096.0,87090.0,0.001]
[1745200738654,0.11944791,87095.0,87092.0,0.34]
[1745200740753,4e-05,87103.0,87092.0,0.34]
[1745200740894,0.11944791,87102.0,87093.0,0.00229611]
[1745200741095,0.01404721,87103.0,87093.0,0.00229611]
[1745200741096,4e-05,87103.0,87093.0,0.00229611]
[1745200743213,4e-05,87103.0,87092.0,0.34]
[1745200745038,0.11944791,87102.0,87092.0,0.34]
[1745200745229,0.11944791,87102.0,87091.0,0.11804]
[1745200745230,0.01400721,87098.0,87091.0,0.11804]
[1745200745478,0.11944791,87097.0,87091.0,0.11804]
[1745200747923,0.10944791,87097.0,87091.0,0.11804]
[1745200748822,0.10948791,87097.0,87091.0,0.11804]
[1745200749023,4e-05,87097.0,87091.0,0.11804]
[1745200750428,4e-05,87097.0,87092.0,0.00229614]
[1745200751499,4e-05,87097.0,87092.0,0.34229614]
[1745200751724,4e-05,87097.0,87092.0,0.34]
[1745200751889,4e-05,87097.0,87093.0,0.00229602]
[1745200753623,4e-05,87097.0,87092.0,0.34]
[1745200753829,4e-05,87097.0,87094.0,0.34]
[1745200756625,4e-05,87097.0,87095.0,0.11804]
[1745200760326,4e-05,87097.0,87093.0,0.9828]
[1745200760527,4e-05,87097.0,87094.0,0.11804]
[1745200760783,4e-05,87097.0,87095.0,0.11804]
[1745200761368,4e-05,87097.0,87093.0,0.9828]
[1745200761786,4e-05,87097.0,87094.0,0.11804]
[1745200762165,4e-05,87097.0,87093.0,0.9828]
[1745200762166,4e-05,87097.0,87095.0,0.11804]
[1745200762620,4e-05,87097.0,87093.0,0.9828]
[1745200762823,4e-05,87097.0,87096.0,0.11804]
[1745200763865,4e-05,87097.0,87093.0,0.9828]
[1745200764087,4e-05,87097.0,87094.0,1.1008]
[1745200764208,4e-05,87097.0,87095.0,0.11804]
[1745200764458,4e-05,87097.0,87094.0,0.98276]
[1745200764459,4e-05,87097.0,87096.0,0.11804]
[1745200764794,4e-05,87097.0,87096.0,0.11356]
[1745200765306,4e-05,87097.0,87094.0,0.98276]
[1745200765444,4e-05,87097.0,87095.0,0.11356]
[1745200766072,4e-05,87097.0,87094.0,0.98276]
[1745200766310,4e-05,87097.0,87095.0,0.11356]
[1745200770595,4e-05,87103.0,87095.0,0.11356]
[1745200770801,4e-05,87103.0,87095.0,0.15029267]
[1745200771001,0.11948791,87103.0,87095.0,0.11585611]
[1745200771230,0.11948791,87103.0,87095.0,0.11356]
[1745200771551,0.11948791,87103.0,87095.0,0.34]
[1745200771748,0.11948791,87103.0,87097.0,0.34]
[1745200771965,0.11948791,87103.0,87099.0,0.34]
[1745200772980,0.11948791,87103.0,87101.0,0.34]
[1745200773357,0.11948791,87103.0,87102.0,0.34]
[1745200773744,0.12048791,87103.0,87102.0,0.45356]
[1745200773947,0.12048791,87103.0,87102.0,0.34]
[1745200774146,0.12048791,87103.0,87102.0,0.45356]
[1745200780905,0.12048791,87103.0,87102.0,0.11356]
[1745200781979,0.12048791,87103.0,87094.0,0.98276]
[1745200782189,0.01500721,87089.0,87067.0,0.0469]
[1745200782393,0.01400721,87087.0,87067.0,0.05529246]
[1745200782591,0.01400721,87087.0,87068.0,1.09628]
[1745200782592,0.11944791,87086.0,87068.0,1.09628]
[1745200783383,0.001,87083.0,87069.0,1.09628]
[1745200783557,0.11944791,87082.0,87069.0,1.09628]
[1745200783710,0.11944791,87082.0,87069.0,1.14199883]
[1745200784140,0.11944791,87082.0,87069.0,0.04571883]
[1745200784349,0.11944791,87082.0,87070.0,1.09628]
[1745200785433,0.11244791,87082.0,87070.0,1.09628]
[1745200785733,0.11244791,87082.0,87072.0,0.34]
[1745200787076,0.11244791,87082.0,87071.0,0.9828]
[1745200787278,0.01400721,87077.0,87073.0,0.11356]
[1745200787579,0.001,87075.0,87073.0,0.11356]
[1745200787725,0.001,87075.0,87074.0,0.34]
[1745200787936,0.12044791,87075.0,87074.0,0.34]
[1745200788721,0.12058376,87075.0,87074.0,0.34]
[1745200789882,0.12058376,87075.0,87071.0,0.9828]
[1745200790086,0.00013585,87075.0,87074.0,0.11356]
[1745200790435,0.4162,87085.0,87074.0,0.11356]
[1745200791206,0.00037224,87086.0,87074.0,0.11356]
[1745200792230,0.11944791,87085.0,87071.0,0.9838]
[1745200792525,0.00137224,87083.0,87072.0,0.11356]
[1745200792724,0.11982015,87083.0,87072.0,0.11356]
[1745200793318,0.11982015,87083.0,87072.0,0.34]
[1745200793543,0.11982015,87083.0,87074.0,0.34]
[1745200793748,0.001,87092.0,87074.0,0.34]
[1745200794021,0.00037224,87083.0,87074.0,0.34]
[1745200797483,0.00037224,87088.0,87074.0,0.34]
[1745200797642,0.00037224,87083.0,87074.0,0.34]
[1745200800243,0.11941015,87091.0,87074.0,0.34]
[1745200800454,0.4162,87096.0,87074.0,0.34]
[1745200800662,0.00104,87103.0,87076.0,0.0473]
[1745200800874,0.00117597,87103.0,87077.0,0.11944791]
[1745200801487,0.00117597,87103.0,87078.0,0.1132]
[1745200801606,0.00117597,87103.0,87078.0,0.23264791]
[1745200802209,0.009,87080.0,87079.0,0.34]
[1745200802411,1e-08,87080.0,87079.0,0.34]
[1745200803272,0.41037598,87106.0,87079.0,0.341]
[1745200803425,0.11944791,87106.0,87079.0,0.34113597]
[1745200803633,0.11944791,87106.0,87081.0,0.34]
[1745200804202,4e-05,87107.0,87079.0,0.00113597]
[1745200804203,0.001,87088.0,87079.0,0.00113597]
[1745200804356,0.11944791,87087.0,87082.0,0.1132]
[1745200804534,0.11944791,87087.0,87083.0,0.34]
[1745200804937,0.11944791,87087.0,87079.0,0.00113597]
[1745200805139,0.001,87086.0,87080.0,0.1132]
[1745200805369,0.11944791,87085.0,87081.0,0.34]
[1745200805915,0.41037598,87094.0,87081.0,0.34]
[1745200806113,0.41037598,87094.0,87079.0,0.00113597]
[1745200806114,0.41037598,87094.0,87082.0,0.1132]
[1745200806374,0.39707787,87094.0,87083.0,0.0022963]
[1745200806599,0.39707787,87094.0,87082.0,0.23264791]
[1745200806600,0.39707787,87094.0,87082.0,0.1132]
[1745200806739,0.39707787,87094.0,87079.0,0.05043597]
[1745200806944,0.38268157,87094.0,87083.0,0.1132]
[1745200807360,0.36164495,87094.0,87083.0,0.1132]
[1745200807534,0.34081755,87094.0,87084.0,0.00229617]
[1745200807934,0.34081755,87094.0,87083.0,0.1132]
[1745200808206,0.34081755,87094.0,87083.0,0.12199707]
[1745200808340,0.28353375,87094.0,87084.0,0.00229617]
[1745200808769,0.046,87110.0,87084.0,0.00229617]
[1745200809905,0.0018454,87113.0,87086.0,0.0493]
[1745200809906,0.0008454,87113.0,87086.0,0.0493]
[1745200810109,0.0008454,87113.0,87088.0,0.34]
[1745200810279,0.0008454,87113.0,87090.0,0.34]
[1745200810480,0.0008454,87113.0,87092.0,0.34]
[1745200810688,0.0008454,87113.0,87093.0,0.00229575]
[1745200811098,0.0008454,87113.0,87095.0,0.0493]
[1745200811302,0.37205305,87128.0,87096.0,0.11944791]
[1745200811510,0.37205305,87128.0,87097.0,0.00229551]
[1745200811737,0.37205305,87128.0,87096.0,0.11944791]
[1745200813363,0.28019564,87128.0,87096.0,0.11944791]
[1745200814235,0.28019564,87128.0,87097.0,0.0493]
[1745200814701,0.001,87131.0,87097.0,0.0493]
[1745200814702,0.0046619,87129.0,87098.0,0.12174342]
[1745200814905,0.12410981,87129.0,87098.0,0.12174342]
[1745200815112,0.0046619,87129.0,87099.0,0.0455]
[1745200815306,0.0465,87143.0,87099.0,0.0455]
[1745200815307,0.001845,87142.0,87100.0,0.13628403]
[1745200815508,0.11944791,87136.0,87101.0,0.0493]
[1745200815711,0.11710401,87136.0,87102.0,0.12174315]
[1745200815888,0.11710401,87136.0,87103.0,0.1132]
[1745200816242,0.001,87131.0,87105.0,0.34]
[1745200816504,0.12174366,87130.0,87107.0,0.34]
[1745200816669,0.11876554,87130.0,87108.0,0.0022955]
[1745200816995,0.11876554,87130.0,87107.0,0.34]
[1745200817196,0.00229575,87129.0,87107.0,0.34]
[1745200817497,0.11944791,87128.0,87108.0,0.0022955]
[1745200817907,0.11944791,87128.0,87107.0,0.34839621]
[1745200818239,0.11251492,87128.0,87109.0,0.34]
[1745200818666,0.11251492,87128.0,87111.0,0.34]
[1745200818871,0.11251492,87128.0,87112.0,0.0022955]
[1745200819085,0.11251492,87128.0,87111.0,0.34]
[1745200819295,0.11251492,87128.0,87112.0,0.0022955]
[1745200819918,0.11251492,87128.0,87111.0,0.34]
[1745200821028,0.11251492,87128.0,87112.0,0.0022955]
[1745200823802,0.28119564,87136.0,87112.0,0.0022955]
[1745200824020,0.1485197,87136.0,87113.0,0.047]
[1745200824345,0.001,87131.0,87111.0,0.34]
[1745200824555,0.001,87118.0,87112.0,0.12992]
[1745200824783,0.0472603,87114.0,87113.0,0.12992]
[1745200825122,0.0472603,87114.0,87075.0,0.047]
[1745200825123,0.001,87104.0,87075.0,0.047]
[1745200825324,0.11944791,87103.0,87084.0,0.34]
[1745200825464,0.11944791,87103.0,87083.0,0.12992]
[1745200825670,0.11875484,87103.0,87084.0,0.34]
[1745200825871,0.11875484,87103.0,87084.0,0.34851083]
[1745200826069,0.11875484,87103.0,87085.0,0.1352]
[1745200826304,0.11875484,87103.0,87086.0,0.34]
[1745200826493,0.11863558,87103.0,87086.0,0.34]
[1745200826691,0.14838375,87113.0,87087.0,0.00229612]
[1745200826892,0.11944791,87112.0,87087.0,0.00229594]
[1745200827294,0.14838375,87113.0,87088.0,0.11944791]
[1745200827682,0.23438512,87113.0,87085.0,0.13533597]
[1745200827882,0.23438512,87113.0,87086.0,0.11944791]
[1745200828124,0.23438512,87113.0,87087.0,0.1352]
[1745200828325,0.09123721,87113.0,87088.0,0.12174375]
[1745200828478,0.09123721,87113.0,87088.0,0.11944791]
[1745200828680,0.08551126,87113.0,87088.0,0.11944791]
[1745200829319,0.08551126,87113.0,87087.0,0.1352]
[1745200829320,0.001,87114.0,87100.0,0.24987486]
[1745200829530,0.12044791,87114.0,87090.0,0.24987486]
[1745200829750,0.001,87112.0,87085.0,0.00013597]
[1745200829967,0.001,87114.0,87086.0,0.1352]
[1745200829968,0.001,87104.0,87086.0,0.1352]
[1745200830184,0.11944791,87103.0,87087.0,0.0022962]
[1745200830395,0.11944791,87103.0,87087.0,0.3422962]
[1745200830606,0.04620288,87111.0,87091.0,0.34]
[1745200830751,0.11944791,87110.0,87091.0,0.34]
[1745200830956,0.04620288,87111.0,87091.0,0.34]
[1745200830957,0.04620288,87111.0,87101.0,0.34]
[1745200831154,0.00329575,87129.0,87102.0,0.00229595]
[1745200831441,0.0464,87130.0,87110.0,0.34]
[1745200831618,0.11733378,87129.0,87111.0,0.0022955]
[1745200831820,0.00229575,87128.0,87110.0,0.34]
[1745200832022,0.11944791,87127.0,87110.0,0.34]
[1745200832222,0.11944791,87127.0,87110.0,0.58987486]
[1745200832429,0.0464,87130.0,87111.0,0.00229555]
[1745200832629,0.12274366,87129.0,87093.0,0.34]
[1745200832836,0.12274366,87129.0,87095.0,0.34]
[1745200833071,0.12274366,87129.0,87101.0,0.34]
[1745200833665,0.047,87128.0,87101.0,0.34]
[1745200833941,0.12174366,87127.0,87096.0,0.11944791]
[1745200834146,0.12174366,87127.0,87100.0,0.24987486]
[1745200834563,0.001,87124.0,87100.0,0.00857654]
[1745200834767,0.001,87120.0,87100.0,0.00857654]
[1745200834974,0.12054678,87119.0,87091.0,0.001]
[1745200835733,0.12054678,87119.0,87100.0,0.24987486]
[1745200835928,0.001,87126.0,87109.0,0.24987486]
[1745200836160,0.12154678,87125.0,87100.0,0.24987486]
[1745200836998,0.12044791,87125.0,87110.0,0.24987486]
[1745200837201,0.11944791,87125.0,87111.0,0.00229565]
[1745200837405,0.11944791,87125.0,87111.0,0.34229565]
[1745200837608,0.001,87124.0,87111.0,0.34]
[1745200837803,0.11944791,87123.0,87112.0,0.00229565]
[1745200838618,0.001,87120.0,87091.0,0.34954648]
[1745200838820,0.001,87120.0,87101.0,0.34]
[1745200838821,0.12054678,87119.0,87101.0,0.34]
[1745200839038,0.12054678,87119.0,87103.0,0.34]
[1745200839575,0.001,87126.0,87104.0,0.00229577]
[1745200839695,0.11944791,87125.0,87103.0,0.34]
[1745200840524,0.11910136,87125.0,87103.0,0.34]
[1745200841103,0.24987486,87120.0,87102.0,0.14572]
[1745200841310,0.11944791,87112.0,87102.0,0.14572]
[1745200841561,0.16484791,87110.0,87102.0,0.14572]
[1745200841764,0.01454085,87109.0,87103.0,0.14572]
[1745200841968,0.25087486,87112.0,87103.0,0.14572]
[1745200841969,0.0454,87108.0,87103.0,0.14572]
[1745200842147,0.13395681,87104.0,87103.0,0.14572]
[1745200842349,0.17935681,87104.0,87091.0,0.00113597]
[1745200842479,0.26441571,87101.0,87100.0,0.48572]
[1745200842712,0.22651301,87101.0,87100.0,0.48572]
[1745200842937,0.22651301,87101.0,87100.0,0.14572]
[1745200843611,0.22524589,87101.0,87100.0,0.14572]
[1745200845472,0.31075715,87101.0,87100.0,0.14572]
[1745200845694,0.01454085,87097.0,87092.0,0.14576]
[1745200845916,0.13398876,87093.0,87092.0,0.14576]
[1745200846146,0.21950002,87093.0,87092.0,0.14576]
[1745200846329,0.26730002,87093.0,87092.0,0.14576]
[1745200846775,0.26679492,87093.0,87092.0,0.14576]
[1745200846986,0.26564687,87093.0,87092.0,0.14576]
[1745200847208,0.25103713,87093.0,87092.0,0.14576]
[1745200847637,0.25043067,87093.0,87092.0,0.14576]
[1745200847861,0.26497152,87093.0,87092.0,0.14576]
[1745200848740,0.31037152,87093.0,87092.0,0.14576]
[1745200850765,0.31002495,87093.0,87092.0,0.14576]
[1745200852746,0.30950487,87093.0,87092.0,0.14576]
[1745200853450,0.29496402,87093.0,87092.0,0.14576]
[1745200853871,0.30950487,87093.0,87092.0,0.14576]
[1745200854512,0.30950487,87093.0,87072.0,0.09185741]
[1745200854513,0.01454085,87092.0,87089.0,0.1458]
[1745200854738,0.30950487,87093.0,87089.0,0.1458]
[1745200854739,0.13398876,87090.0,87089.0,0.1458]
[1745200855152,0.13398876,87090.0,87089.0,0.4858]
[1745200855709,0.21950002,87090.0,87089.0,0.4858]
[1745200855927,0.21950002,87090.0,87089.0,0.1458]
[1745200856131,0.26530002,87090.0,87089.0,0.1458]
[1745200856555,0.26530002,87090.0,87071.0,0.004]
[1745200856556,0.01454085,87089.0,87071.0,0.004]
[1745200856737,0.22568876,87072.0,87071.0,0.004]
[1745200858242,0.01454085,87067.0,87062.0,0.0004225]
[1745200858455,0.17978876,87063.0,87062.0,0.0004225]
[1745200859500,0.31120002,87063.0,87043.0,0.04731846]
[1745200859709,0.23069494,87073.0,87022.0,0.98304]
[1745200859710,0.01454085,87054.0,87022.0,0.98304]
[1745200859912,0.13398876,87054.0,87053.0,0.00098045]
[1745200860341,0.17978876,87054.0,87053.0,0.00098045]
[1745200860945,0.22649027,87054.0,87037.0,0.1458]
[1745200861152,0.22649027,87054.0,87038.0,0.3404226]
[1745200861153,0.17978876,87050.0,87038.0,0.3404226]
[1745200861304,0.22568876,87050.0,87038.0,0.0004226]
[1745200861528,0.23409805,87050.0,87038.0,0.0004226]
[1745200861738,0.01454085,87045.0,87038.0,0.0004226]
[1745200861917,0.17978876,87045.0,87038.0,0.0004226]
[1745200862134,0.06034085,87042.0,87038.0,0.0004226]
[1745200862346,0.17978876,87042.0,87038.0,0.0004226]
[1745200863371,0.20284667,87042.0,87038.0,0.0004226]
[1745200863574,0.20284667,87042.0,87039.0,0.14584]
[1745200863778,0.11944791,87041.0,87040.0,0.14584]
[1745200864451,0.20284667,87041.0,87040.0,0.14584]
[1745200865877,0.20284667,87041.0,87040.0,0.48584]
[1745200866084,0.21738752,87041.0,87040.0,0.48584]
[1745200866288,0.20284667,87041.0,87040.0,0.48584]
[1745200866850,0.20284667,87041.0,87040.0,0.48684]
[1745200867255,0.08339876,87056.0,87041.0,0.34]
[1745200867487,0.11944791,87055.0,87041.0,0.34]
[1745200868466,0.11944791,87052.0,87040.0,0.14684]
[1745200868672,0.11903171,87052.0,87040.0,0.14684]
[1745200871833,0.11903171,87052.0,87041.0,0.00229771]
[1745200872055,0.11903171,87052.0,87040.0,0.14684]
[1745200873622,0.11865022,87052.0,87040.0,0.42848456]
[1745200873839,0.11865022,87052.0,87040.0,0.14684]
[1745200874704,0.11865022,87052.0,87041.0,0.34]
[1745200875377,0.11944791,87045.0,87042.0,0.14432]
[1745200875619,0.13398876,87043.0,87042.0,0.14432]
[1745200875843,0.13398876,87043.0,87024.0,0.98344]
[1745200875844,0.06314085,87042.0,87024.0,0.98344]
[1745200876054,0.01454085,87026.0,87025.0,0.14432]
[1745200876297,0.01454085,87038.0,87024.0,0.98344]
[1745200876773,0.11944791,87031.0,87025.0,0.34]
[1745200879019,0.08339876,87030.0,87025.0,0.34]
[1745200879225,0.11944791,87029.0,87025.0,0.34]
[1745200879633,0.1191531,87029.0,87025.0,0.34]
[1745200880055,0.01454085,87028.0,87025.0,0.34]
[1745200880298,0.13398876,87026.0,87025.0,0.34]
[1745200880651,0.13364179,87026.0,87025.0,0.34]
[1745200881523,0.10804085,87025.0,87024.0,0.98344]
[1745200881725,0.22748876,87025.0,87024.0,0.98344]
[1745200882426,0.31088752,87025.0,87024.0,0.98344]
[1745200882693,0.01454085,87023.0,87015.0,0.14436]
[1745200882867,0.13398876,87016.0,87015.0,0.14436]
[1745200883292,0.01454085,87015.0,87005.0,0.0004228]
[1745200883428,0.08339876,87024.0,87012.0,0.13952]
[1745200883624,0.13398876,87013.0,87012.0,0.13952]
[1745200884034,0.13444151,87013.0,87012.0,0.13952]
[1745200884420,0.01454085,87012.0,87005.0,0.0004228]
[1745200884576,0.01422862,87010.0,87009.0,0.13952]
[1745200884776,0.13367653,87010.0,87009.0,0.13952]
[1745200888025,0.21707529,87010.0,87009.0,0.13952]
[1745200888858,0.26527529,87010.0,87009.0,0.13952]
[1745200889043,0.26491101,87010.0,87009.0,0.13952]
[1745200890298,0.26491101,87010.0,87005.0,0.0004228]
[1745200890518,0.11944791,87006.0,87005.0,0.0004228]
[1745200890709,0.20284667,87006.0,87005.0,0.0004228]
[1745200890919,0.21838752,87006.0,87005.0,0.0004228]
[1745200891122,0.21738752,87006.0,87005.0,0.0004228]
[1745200891321,0.21838752,87006.0,87005.0,0.0004228]
[1745200894632,0.20322201,87006.0,87005.0,0.0004228]
[1745200896497,0.21776286,87006.0,87005.0,0.0004228]
[1745200897372,0.31336286,87006.0,87005.0,0.0004228]
[1745200905701,0.31336286,87006.0,86990.0,0.0004228]
[1745200905702,0.08297596,87001.0,86990.0,0.0004228]
[1745200905914,0.13398876,86991.0,86990.0,0.0004228]
[1745200907550,0.13398876,86991.0,86990.0,0.1399828]
[1745200907769,0.13367907,86991.0,86990.0,0.1399828]
[1745200911052,0.11913822,86991.0,86990.0,0.4799828]
[1745200911261,0.20211418,86991.0,86990.0,0.4799828]
[1745200913154,0.08297596,87005.0,86990.0,0.1399828]
[1745200913427,0.11944791,87004.0,86990.0,0.14328162]
[1745200913835,0.11944791,87004.0,86990.0,0.1409828]
[1745200914006,0.11944791,87004.0,86976.0,0.02749116]
[1745200914007,0.11944791,87004.0,86991.0,1.11888]
[1745200914250,0.08297596,87003.0,86992.0,0.13476]
[1745200914471,0.11944791,87002.0,86993.0,0.13476]
[1745200915258,0.11944791,87002.0,86994.0,0.34]
[1745200916794,0.11914104,87002.0,86994.0,0.34]
[1745200917398,0.08297596,87001.0,86994.0,0.34]
[1745200917642,0.11944791,87000.0,86994.0,0.34]
[1745200917843,0.11944791,87000.0,86988.0,1.02376737]
[1745200917844,0.11944791,87000.0,86996.0,0.34]
[1745200919066,0.11655791,87000.0,86996.0,0.34]
[1745200919682,0.1162455,87000.0,86996.0,0.34]
[1745200919888,0.01454085,86996.0,86988.0,1.02376737]
[1745200920089,0.13398876,86990.0,86989.0,0.13476]
[1745200920312,0.18178876,86990.0,86989.0,0.13476]
[1745200921174,0.18378876,86990.0,86989.0,0.13476]
[1745200923158,0.26676472,86990.0,86989.0,0.13476]
[1745200923353,0.20442387,86990.0,86989.0,0.13476]
[1745200923557,0.20399656,86990.0,86989.0,0.13476]
[1745200924553,0.08497596,86990.0,86989.0,0.13476]
[1745200925670,0.0843165,86990.0,86989.0,0.13476]
[1745200926719,0.08386044,86990.0,86989.0,0.13576]
[1745200928573,0.08386044,86990.0,86989.0,1.11884]
[1745200928978,0.00088448,86990.0,86989.0,1.11416]
[1745200929180,0.12133239,86990.0,86989.0,1.11416]
[1745200929738,0.12070766,86990.0,86989.0,1.11416]
[1745200930831,0.12009839,86990.0,86989.0,1.45416]
[1745200932782,0.1198093,86990.0,86989.0,1.45416]
[1745200933793,0.1198093,86990.0,86989.0,1.32408]
[1745200934006,0.1208093,86990.0,86989.0,1.11412]
[1745200934204,0.13535015,86990.0,86989.0,1.11412]
[1745200934379,0.13435015,86990.0,86989.0,1.11412]
[1745200934581,0.13535015,86990.0,86989.0,1.11412]
[1745200934785,0.1208093,86990.0,86989.0,1.11412]
[1745200937130,0.12039286,86990.0,86989.0,1.11412]
[1745200937526,0.001,86990.0,86989.0,1.45412]
[1745200938429,0.12044791,86990.0,86989.0,1.45412]
[1745200938558,0.001,86990.0,86989.0,1.45412]
[1745200938965,0.12044791,86990.0,86989.0,1.11416]
[1745200939906,0.12144791,86990.0,86989.0,1.11416]
[1745200941575,0.12113559,86990.0,86989.0,1.11416]
[1745200942771,0.12113559,86990.0,86962.0,0.00840346]
[1745200942772,0.001,86961.0,86952.0,0.98408]
[1745200942982,0.12044791,86960.0,86952.0,0.98408]
[1745200943126,0.00086117,86959.0,86953.0,0.13008]
[1745200943341,0.11944791,86958.0,86953.0,0.13008]
[1745200944374,0.11990011,86958.0,86954.0,0.13008]
[1745200946744,0.11953575,86958.0,86955.0,0.34]
[1745200947172,0.11953575,86958.0,86957.0,0.34]
[1745200947398,0.12039692,86958.0,86957.0,0.34]
[1745200947993,0.16739692,86958.0,86957.0,0.34]
[1745200948230,0.00086117,86957.0,86956.0,0.13008]
[1745200948561,0.12030908,86957.0,86956.0,0.13008]
[1745200948762,0.11944791,86957.0,86956.0,0.13008]
[1745200948972,0.12030908,86957.0,86956.0,0.13008]
[1745200950390,0.11944791,86957.0,86956.0,0.13008]
[1745200950889,0.11944791,86957.0,86956.0,0.13108]
[1745200951585,0.11915292,86957.0,86956.0,0.47108]
[1745200955698,0.11790927,86960.0,86957.0,0.13008]
[1745200956995,0.11790927,86960.0,86956.0,0.00113602]
[1745200957183,0.11790927,86960.0,86959.0,0.34]
[1745200958229,0.00086117,86975.0,86956.0,0.00113602]
[1745200958491,0.00086117,86973.0,86959.0,0.13008]
[1745200958692,0.11944791,86973.0,86960.0,0.00229954]
[1745200958838,0.11938823,86973.0,86959.0,0.13008]
[1745200959604,0.00086117,86967.0,86959.0,0.13008]
[1745200959801,0.11944791,86966.0,86959.0,0.13008]
[1745200960376,0.11944791,86966.0,86956.0,0.00113602]
[1745200960582,0.11944791,86966.0,86960.0,0.12756]
[1745200961599,0.11883513,86966.0,86960.0,0.12756]
[1745200962018,0.00086117,86962.0,86960.0,0.12756]
[1745200962209,0.11944791,86961.0,86960.0,0.12756]
[1745200962871,0.09185741,86970.0,86960.0,0.12756]
[1745200962872,0.09185741,86970.0,86961.0,0.34]
[1745200963096,0.04686117,86979.0,86961.0,0.34]
[1745200963350,0.00086117,86975.0,86961.0,0.34]
[1745200963567,0.00068768,86980.0,86962.0,0.00229935]
[1745200963770,0.0455,86997.0,86962.0,0.00229935]
[1745200963771,0.04636117,86997.0,86962.0,0.00229935]
[1745200963973,0.09185741,87000.0,86960.0,0.12756]
[1745200963974,0.09185741,86990.0,86964.0,0.34]
[1745200964180,0.09185741,86990.0,86966.0,0.34]
[1745200964394,0.09185741,86990.0,86968.0,0.34]
[1745200964625,0.0915,86989.0,86963.0,0.02520023]
[1745200964831,0.046,86972.0,86964.0,0.12756]
[1745200965042,0.11944791,86987.0,86965.0,0.34]
[1745200965247,0.11875325,86987.0,86965.0,0.34]
[1745200965476,0.04636117,86989.0,86966.0,0.00229915]
[1745200965477,0.0455,86989.0,86966.0,0.00229915]
[1745200965680,0.09185741,86990.0,86967.0,0.34]
[1745200966537,0.00086117,86988.0,86964.0,0.12756]
[1745200966679,0.11944791,86987.0,86964.0,0.12756]
[1745200967065,0.09185741,86972.0,86964.0,0.12756]
[1745200967271,0.0455,86977.0,86964.0,0.12756]
[1745200967272,0.0455,86977.0,86965.0,0.00229955]
[1745200967400,0.046,86980.0,86964.0,0.12756]
[1745200967612,0.11944791,86979.0,86965.0,0.00229934]
[1745200968427,0.09185741,86981.0,86965.0,0.00229934]
[1745200968781,0.09185741,86981.0,86964.0,0.12756]
[1745200969275,0.09140613,86981.0,86965.0,0.34]
[1745200970164,0.09140613,86981.0,86965.0,0.45944791]
[1745200970759,0.09041032,86981.0,86965.0,0.45944791]
[1745200971173,0.14105741,87000.0,86967.0,0.34]
[1745200971390,0.11944791,86999.0,86969.0,0.34]
[1745200971597,0.11944791,86999.0,86971.0,0.34]
[1745200971794,0.09185741,86991.0,86973.0,0.34]
[1745200972004,0.11944791,86999.0,86973.0,0.34]
[1745200974421,0.00086117,86997.0,86964.0,0.12756]
[1745200974619,0.11944791,86996.0,86965.0,0.11944791]
[1745200974823,0.11944791,86996.0,86966.0,0.00229893]
[1745200975026,0.11944791,86996.0,86967.0,0.11944791]
[1745200975223,0.11944791,86996.0,86968.0,0.00229893]
[1745200975466,0.004,87009.0,86969.0,0.11944791]
[1745200975667,0.11944791,87007.0,86970.0,0.00229865]
[1745200975840,0.12030908,87007.0,86971.0,0.11944791]
[1745200976059,0.11944791,87007.0,86972.0,0.00229866]
[1745200976193,0.00290159,87009.0,86974.0,0.01454085]
[1745200976414,0.0008454,87025.0,86984.0,0.01454085]
[1745200976794,0.0008454,87025.0,86986.0,0.11944791]
[1745200976795,0.09185741,87005.0,86986.0,0.11944791]
[1745200976990,0.00086117,86994.0,86985.0,1.11164]
[1745200977205,0.00086117,86999.0,86986.0,0.12752]
[1745200977769,0.00086117,86999.0,86987.0,0.00229887]
[1745200977969,0.0487,87004.0,86987.0,0.00229887]
[1745200978181,0.0487,87004.0,86986.0,0.00013602]
[1745200978500,0.0487,87004.0,86987.0,0.12752]
[1745200978679,0.04824876,87004.0,86987.0,0.1362432]
[1745200979732,0.00086117,87013.0,86987.0,0.1362432]
[1745200979733,0.0492,87014.0,86988.0,0.34229867]
[1745200979958,0.11944791,87013.0,86988.0,0.34]
[1745200980260,0.09185741,87012.0,86990.0,0.34]
[1745200980463,0.09185741,87012.0,86990.0,0.45944791]
[1745200980639,0.09152553,87012.0,86990.0,0.45944791]
[1745200980837,0.21097344,87012.0,86990.0,0.34]
[1745200981245,0.11944791,87011.0,86988.0,0.34]
[1745200981805,0.16914791,87011.0,86990.0,0.34]
[1745200982441,0.0497,87011.0,86990.0,0.34]